[Event "2026 European Womens Championship"]
[Site "Batumi, GE"]
[Date "2026.06.01"]
[Round "7"]
[White "Casadevall Mainau, Iraida"]
[Black "Chanturia, Lika"]
[Result "0-1"]
[Board "130"]
[TimeControl "5400+30"]
[WhiteFideId "54543142"]
[BlackFideId "13618857"]
[WhiteElo "1729"]
[BlackElo "1649"]
[WhiteClock "0:00:56"]
[BlackClock "1:30:30"]
[Variant "Standard"]

1. e4 {[%clk 1:30:30]}  c6 {[%clk 0:00:00]} 2. d4 {[%clk 1:30:05]}  d5 {[%clk 0:00:00]} 3. exd5 {[%clk 1:29:45]}  cxd5 {[%clk 0:00:00]}
4. Bd3 {[%clk 1:29:18]}  Nc6 {[%clk 0:00:00]} 5. c3 {[%clk 1:28:44]}  Qc7 {[%clk 0:00:00]} 6. Na3 {[%clk 1:26:56]}  a6 {[%clk 0:00:00]}
7. Nc2 {[%clk 1:26:08]}  Nf6 {[%clk 0:00:00]} 8. h3 {[%clk 1:23:13]}  g6 {[%clk 0:00:00]} 9. Nf3 {[%clk 1:22:14]}  Bg7 {[%clk 0:00:00]}
10. O-O {[%clk 1:16:48]}  O-O {[%clk 0:00:00]} 11. Re1 {[%clk 1:11:05]}  b5 {[%clk 0:00:00]} 12. Bg5 {[%clk 1:04:34]}  Re8 {[%clk 0:00:00]}
13. a4 {[%clk 0:50:59]}  Rb8 {[%clk 0:00:00]} 14. Qd2 {[%clk 0:30:36]}  Qb6 {[%clk 0:00:00]} 15. Bf4 {[%clk 0:27:55]}  Rb7 {[%clk 0:00:00]}
16. Ne5 {[%clk 0:22:17]}  Nxe5 {[%clk 0:00:00]} 17. dxe5 {[%clk 0:22:02]}  Nd7 {[%clk 0:00:00]} 18. axb5 {[%clk 0:15:31]}  axb5 {[%clk 0:00:00]}
19. Nb4 {[%clk 0:13:18]}  Nc5 {[%clk 0:00:00]} 20. Bc2 {[%clk 0:12:37]}  e6 {[%clk 0:00:00]} 21. Bh6 {[%clk 0:07:53]}  Rd7 {[%clk 0:00:00]}
22. Bxg7 {[%clk 0:02:58]}  Kxg7 {[%clk 0:00:00]} 23. Qd4 {[%clk 0:02:37]}  Qc7 {[%clk 0:00:00]} 24. h4 {[%clk 0:00:56]}  Bb7 {[%clk 0:00:00]}
25. h5 {[%clk 0:00:56]}  Ne4 {[%clk 0:00:00]} 26. f3 {[%clk 0:00:00]}  Ng3 {[%clk 0:00:00]} 27. hxg6 {[%clk 0:00:00]}  fxg6 {[%clk 0:00:00]}
28. Kh2 {[%clk 0:00:00]}  Nf5 {[%clk 0:00:00]} 29. Bxf5 {[%clk 0:00:00]}  gxf5 {[%clk 0:00:00]} 30. Qh4 {[%clk 0:00:00]}  d4 {[%clk 0:00:00]}
31. Qf6+ {[%clk 0:00:00]}  Kg8 {[%clk 0:00:00]} 32. Qg5+ {[%clk 0:00:00]}  Rg7 {[%clk 0:00:00]} 33. Qd2 {[%clk 0:00:00]}  dxc3 {[%clk 0:00:00]}
34. Qxc3 {[%clk 0:00:00]}  Qe7 {[%clk 0:00:00]} 35. Qd4 {[%clk 0:00:00]}  Qg5 {[%clk 0:00:00]} 36. Re2 {[%clk 0:00:00]}  Bxf3 {[%clk 0:00:00]}
37. Qd7 {[%clk 0:00:00]}  Rxd7 {[%clk 0:00:00]} 0-1

[Event "2026 European Womens Championship"]
[Site "Batumi, GE"]
[Date "2026.06.02"]
[Round "8"]
[White "Vega Gutierrez, Sabrina"]
[Black "Arabidze, Meri"]
[Result "1-0"]
[Board "1"]
[TimeControl "5400+30"]
[WhiteFideId "2219026"]
[BlackFideId "13604040"]
[WhiteElo "2375"]
[BlackElo "2409"]
[WhiteTitle "IM"]
[BlackTitle "IM"]
[WhiteClock "0:04:09"]
[BlackClock "0:02:05"]
[Variant "Standard"]

1. e4 {[%clk 1:30:57]}  c5 {[%clk 1:30:49]} 2. Nf3 {[%clk 1:31:20]}  e6 {[%clk 1:31:16]} 3. d4 {[%clk 1:31:43]}  cxd4 {[%clk 1:31:41]}
4. Nxd4 {[%clk 1:32:07]}  a6 {[%clk 1:32:06]} 5. Bd3 {[%clk 1:32:27]}  Bc5 {[%clk 1:32:30]} 6. Nb3 {[%clk 1:32:51]}  Ba7 {[%clk 1:32:57]}
7. Qg4 {[%clk 1:33:09]}  Nf6 {[%clk 1:33:03]} 8. Qg3 {[%clk 1:33:31]}  d6 {[%clk 1:33:11]} 9. Nc3 {[%clk 1:33:44]}  Nc6 {[%clk 1:32:43]}
10. Bg5 {[%clk 1:34:01]}  h6 {[%clk 1:32:03]} 11. Bd2 {[%clk 1:34:19]}  Nh5 {[%clk 1:31:39]} 12. Qf3 {[%clk 1:34:35]}  Nf6 {[%clk 1:32:03]}
13. O-O-O {[%clk 1:34:43]}  Ne5 {[%clk 1:30:28]} 14. Qg3 {[%clk 1:35:03]}  b5 {[%clk 1:20:24]} 15. a3 {[%clk 1:35:23]}  Nxd3+ {[%clk 1:17:26]}
16. Qxd3 {[%clk 1:35:02]}  O-O {[%clk 1:17:07]} 17. Be3 {[%clk 1:30:16]}  Bxe3+ {[%clk 1:11:02]} 18. Qxe3 {[%clk 1:29:36]}  Bb7 {[%clk 1:03:28]}
19. f3 {[%clk 1:27:18]}  Qc7 {[%clk 1:01:49]} 20. Rhg1 {[%clk 1:27:26]}  Nd7 {[%clk 0:53:31]} 21. Qd2 {[%clk 1:25:53]}  d5 {[%clk 0:53:10]}
22. exd5 {[%clk 1:26:16]}  Bxd5 {[%clk 0:52:07]} 23. Nxd5 {[%clk 1:26:37]}  exd5 {[%clk 0:52:35]} 24. g3 {[%clk 1:26:30]}  Rac8 {[%clk 0:46:44]}
25. Nd4 {[%clk 1:26:31]}  Ne5 {[%clk 0:40:54]} 26. Rge1 {[%clk 1:20:53]}  Rfe8 {[%clk 0:33:16]} 27. Re2 {[%clk 1:02:23]}  Nc4 {[%clk 0:25:27]}
28. Qc3 {[%clk 1:00:00]}  Qd7 {[%clk 0:23:05]} 29. Rxe8+ {[%clk 0:53:05]}  Rxe8 {[%clk 0:23:30]} 30. b3 {[%clk 0:53:15]}  Ne5 {[%clk 0:19:55]}
31. Kb2 {[%clk 0:50:00]}  Rc8 {[%clk 0:17:11]} 32. Qe3 {[%clk 0:45:05]}  Nc6 {[%clk 0:15:57]} 33. Rd3 {[%clk 0:41:34]}  Re8 {[%clk 0:10:06]}
34. Qf4 {[%clk 0:39:39]}  Nxd4 {[%clk 0:07:18]} 35. Qxd4 {[%clk 0:40:00]}  Rd8 {[%clk 0:04:30]} 36. g4 {[%clk 0:21:05]}  Qc7 {[%clk 0:04:06]}
37. h4 {[%clk 0:20:56]}  Qd6 {[%clk 0:02:06]} 38. h5 {[%clk 0:18:13]}  a5 {[%clk 0:01:40]} 39. Rc3 {[%clk 0:16:21]}  b4 {[%clk 0:01:10]}
40. Rc5 {[%clk 0:09:56]}  Qb6 {[%clk 0:00:34]} 41. axb4 {[%clk 0:02:46]}  axb4 {[%clk 0:30:15]} 42. Rc4 {[%clk 0:32:50]}  Qe6 {[%clk 0:23:27]}
43. Rxb4 {[%clk 0:32:43]}  Rc8 {[%clk 0:23:34]} 44. Ra4 {[%clk 0:22:47]}  Qe2 {[%clk 0:22:30]} 45. Qd3 {[%clk 0:23:13]}  Qe5+ {[%clk 0:22:14]}
46. Ka2 {[%clk 0:18:48]}  Qe1 {[%clk 0:21:55]} 47. Kb2 {[%clk 0:14:17]}  Qe5+ {[%clk 0:22:14]} 48. Rd4 {[%clk 0:14:12]}  Ra8 {[%clk 0:18:41]}
49. Qc3 {[%clk 0:14:13]}  Qe6 {[%clk 0:17:16]} 50. Qc5 {[%clk 0:11:14]}  Qe1 {[%clk 0:15:23]} 51. Ra4 {[%clk 0:11:41]}  Rd8 {[%clk 0:15:37]}
52. Qc7 {[%clk 0:10:51]}  Re8 {[%clk 0:13:44]} 53. Ra7 {[%clk 0:10:50]}  Qe6 {[%clk 0:13:42]} 54. Qf4 {[%clk 0:09:49]}  Rf8 {[%clk 0:09:33]}
55. Rb7 {[%clk 0:08:45]}  Qe8 {[%clk 0:08:33]} 56. Qd6 {[%clk 0:07:37]}  Qe6 {[%clk 0:08:20]} 57. Rd7 {[%clk 0:07:50]}  g5 {[%clk 0:02:57]}
58. hxg6 {[%clk 0:05:44]}  Qxg6 {[%clk 0:02:40]} 59. Qxg6+ {[%clk 0:03:39]}  fxg6 {[%clk 0:03:09]} 60. b4 {[%clk 0:03:58]}  Rxf3 {[%clk 0:01:54]}
61. b5 {[%clk 0:03:46]}  Rf6 {[%clk 0:02:00]} 62. Rxd5 {[%clk 0:04:03]}  Kf7 {[%clk 0:02:07]} 63. Kb3 {[%clk 0:03:55]}  Ke6 {[%clk 0:00:46]}
64. c4 {[%clk 0:04:06]}  Rf1 {[%clk 0:00:35]} 65. Kb4 {[%clk 0:04:17]}  Rh1 {[%clk 0:00:48]} 66. b6 {[%clk 0:04:09]}  h5 {[%clk 0:01:00]}
67. gxh5 {[%clk 0:04:13]}  gxh5 {[%clk 0:01:28]} 68. Rb5 {[%clk 0:02:23]}  Kd7 {[%clk 0:01:16]} 69. b7 {[%clk 0:02:49]}  Rb1+ {[%clk 0:01:23]}
70. Kc5 {[%clk 0:03:13]}  Rxb5+ {[%clk 0:01:44]} 71. Kxb5 {[%clk 0:03:41]}  Kc7 {[%clk 0:02:05]} 72. Ka6 {[%clk 0:04:09]} 1-0

[Event "2026 European Womens Championship"]
[Site "Batumi, GE"]
[Date "2026.06.02"]
[Round "8"]
[White "Hnatyshyn, Anastasiia"]
[Black "Badelka, Olga"]
[Result "1/2-1/2"]
[Board "2"]
[TimeControl "5400+30"]
[WhiteFideId "14198339"]
[BlackFideId "13509926"]
[WhiteElo "2207"]
[BlackElo "2392"]
[WhiteTitle "WFM"]
[BlackTitle "IM"]
[WhiteClock "0:07:13"]
[BlackClock "0:03:49"]
[Variant "Standard"]

1. e4 {[%clk 1:30:58]}  e5 {[%clk 1:30:53]} 2. Nf3 {[%clk 1:31:24]}  Nc6 {[%clk 1:31:18]} 3. d4 {[%clk 1:31:48]}  exd4 {[%clk 1:31:41]}
4. Nxd4 {[%clk 1:32:15]}  Bc5 {[%clk 1:31:55]} 5. Nb3 {[%clk 1:32:38]}  Bb6 {[%clk 1:32:09]} 6. Qe2 {[%clk 1:32:59]}  d6 {[%clk 1:32:17]}
7. Nc3 {[%clk 1:33:04]}  a5 {[%clk 1:32:31]} 8. a4 {[%clk 1:31:32]}  Nb4 {[%clk 1:32:35]} 9. Bf4 {[%clk 1:21:59]}  Qf6 {[%clk 1:32:27]}
10. Bg3 {[%clk 1:21:27]}  Ne7 {[%clk 1:25:20]} 11. O-O-O {[%clk 1:18:12]}  O-O {[%clk 1:24:35]} 12. Qd2 {[%clk 1:06:06]}  Be6 {[%clk 1:16:43]}
13. Nd4 {[%clk 0:59:05]}  d5 {[%clk 1:12:22]} 14. Nxe6 {[%clk 0:52:43]}  fxe6 {[%clk 1:12:35]} 15. f3 {[%clk 0:52:18]}  Rad8 {[%clk 1:07:06]}
16. Qe1 {[%clk 0:49:42]}  Ng6 {[%clk 0:59:52]} 17. Kb1 {[%clk 0:46:29]}  Rd7 {[%clk 0:46:52]} 18. Na2 {[%clk 0:43:03]}  Nxa2 {[%clk 0:34:24]}
19. Kxa2 {[%clk 0:43:22]}  c6 {[%clk 0:31:04]} 20. h4 {[%clk 0:31:51]}  h5 {[%clk 0:30:39]} 21. e5 {[%clk 0:30:21]}  Qf7 {[%clk 0:30:21]}
22. Qd2 {[%clk 0:29:45]}  Bd8 {[%clk 0:27:35]} 23. c3 {[%clk 0:26:46]}  Nf4 {[%clk 0:20:01]} 24. Bh2 {[%clk 0:24:54]}  Ng6 {[%clk 0:18:41]}
25. Bg3 {[%clk 0:23:17]}  Nf4 {[%clk 0:17:51]} 26. Bh2 {[%clk 0:23:12]}  Bb6 {[%clk 0:11:13]} 27. g3 {[%clk 0:21:40]}  Ng6 {[%clk 0:11:40]}
28. f4 {[%clk 0:20:48]}  Ne7 {[%clk 0:11:58]} 29. Bd3 {[%clk 0:17:13]}  Nf5 {[%clk 0:11:36]} 30. Bg1 {[%clk 0:16:32]}  Bxg1 {[%clk 0:07:00]}
31. Rdxg1 {[%clk 0:16:57]}  d4 {[%clk 0:06:33]} 32. c4 {[%clk 0:13:51]}  b6 {[%clk 0:05:43]} 33. g4 {[%clk 0:12:37]}  hxg4 {[%clk 0:05:51]}
34. Rxg4 {[%clk 0:13:03]}  Ne3 {[%clk 0:05:22]} 35. Rg6 {[%clk 0:11:43]}  Qxf4 {[%clk 0:05:03]} 36. Rxe6 {[%clk 0:11:07]}  Nd5 {[%clk 0:04:25]}
37. Qe2 {[%clk 0:08:28]}  Nb4+ {[%clk 0:04:51]} 38. Kb1 {[%clk 0:08:04]}  Qe3 {[%clk 0:04:01]} 39. Rd1 {[%clk 0:08:04]}  Qxe2 {[%clk 0:02:55]}
40. Bxe2 {[%clk 0:08:29]}  d3 {[%clk 0:02:23]} 41. Bh5 {[%clk 0:29:20]}  Rd4 {[%clk 0:29:45]} 42. Bg6 {[%clk 0:27:42]}  Rxh4 {[%clk 0:13:02]}
43. Rd6 {[%clk 0:21:18]}  Rg4 {[%clk 0:12:54]} 44. b3 {[%clk 0:15:14]}  Rg5 {[%clk 0:12:11]} 45. Rh1 {[%clk 0:14:25]}  d2 {[%clk 0:10:41]}
46. Rd1 {[%clk 0:13:44]}  Rxe5 {[%clk 0:10:13]} 47. R1xd2 {[%clk 0:13:52]}  Re1+ {[%clk 0:05:34]} 48. Kb2 {[%clk 0:14:01]}  Ref1 {[%clk 0:05:43]}
49. Re6 {[%clk 0:08:24]}  R1f6 {[%clk 0:05:44]} 50. Rde2 {[%clk 0:07:13]}  Rxe6 {[%clk 0:03:49]} 1/2-1/2

[Event "2026 European Womens Championship"]
[Site "Batumi, GE"]
[Date "2026.06.02"]
[Round "8"]
[White "Ushenina, Anna"]
[Black "Unuk, Laura"]
[Result "1/2-1/2"]
[Board "3"]
[TimeControl "5400+30"]
[WhiteFideId "14110911"]
[BlackFideId "14609215"]
[WhiteElo "2420"]
[BlackElo "2289"]
[WhiteTitle "GM"]
[BlackTitle "IM"]
[WhiteClock "0:01:26"]
[BlackClock "0:00:56"]
[Variant "Standard"]

1. c4 {[%clk 1:30:55]}  e6 {[%clk 1:27:57]} 2. Nf3 {[%clk 1:30:16]}  d5 {[%clk 1:28:06]} 3. e3 {[%clk 1:29:41]}  dxc4 {[%clk 1:27:21]}
4. Bxc4 {[%clk 1:29:17]}  Nf6 {[%clk 1:27:03]} 5. O-O {[%clk 1:27:48]}  a6 {[%clk 1:26:17]} 6. d4 {[%clk 1:24:43]}  Be7 {[%clk 1:26:19]}
7. b3 {[%clk 1:10:20]}  O-O {[%clk 1:23:45]} 8. Bb2 {[%clk 1:10:38]}  Nbd7 {[%clk 1:14:11]} 9. Nbd2 {[%clk 1:02:35]}  c5 {[%clk 1:09:24]}
10. Be2 {[%clk 0:47:20]}  b6 {[%clk 1:04:19]} 11. dxc5 {[%clk 0:39:25]}  Nxc5 {[%clk 0:56:12]} 12. Nc4 {[%clk 0:39:26]}  b5 {[%clk 0:18:42]}
13. Qxd8 {[%clk 0:38:25]}  Rxd8 {[%clk 0:17:56]} 14. Na5 {[%clk 0:32:27]}  Bf8 {[%clk 0:16:23]} 15. Rac1 {[%clk 0:24:42]}  Nfe4 {[%clk 0:08:23]}
16. Rfd1 {[%clk 0:21:19]}  Rxd1+ {[%clk 0:07:04]} 17. Rxd1 {[%clk 0:20:45]}  f6 {[%clk 0:06:34]} 18. Ne1 {[%clk 0:13:18]}  Nb7 {[%clk 0:06:27]}
19. Nc6 {[%clk 0:11:57]}  Ned6 {[%clk 0:06:13]} 20. f3 {[%clk 0:11:16]}  Bd7 {[%clk 0:06:07]} 21. Nd4 {[%clk 0:11:23]}  Rc8 {[%clk 0:05:36]}
22. e4 {[%clk 0:10:54]}  Kf7 {[%clk 0:05:02]} 23. Ndc2 {[%clk 0:10:22]}  e5 {[%clk 0:04:05]} 24. Ne3 {[%clk 0:08:20]}  a5 {[%clk 0:04:14]}
25. Nd5 {[%clk 0:07:34]}  Be6 {[%clk 0:02:58]} 26. Nc3 {[%clk 0:07:50]}  b4 {[%clk 0:02:33]} 27. Nd5 {[%clk 0:07:00]}  Rc6 {[%clk 0:02:06]}
28. Ne3 {[%clk 0:02:04]}  Rc8 {[%clk 0:01:42]} 29. Nd3 {[%clk 0:01:49]}  Rc7 {[%clk 0:01:16]} 30. Bc1 {[%clk 0:01:38]}  Nc5 {[%clk 0:00:41]}
31. Bd2 {[%clk 0:01:33]}  Nxd3 {[%clk 0:00:56]} 32. Bxd3 {[%clk 0:02:01]}  Nc8 {[%clk 0:00:40]} 33. Kf1 {[%clk 0:01:34]}  Nb6 {[%clk 0:00:54]}
34. Nc2 {[%clk 0:01:26]}  Bc5 {[%clk 0:00:56]} 1/2-1/2

[Event "2026 European Womens Championship"]
[Site "Batumi, GE"]
[Date "2026.06.02"]
[Round "8"]
[White "Roebers, Eline"]
[Black "Zherebtsova, Alexandra"]
[Result "1-0"]
[Board "4"]
[TimeControl "5400+30"]
[WhiteFideId "1058401"]
[BlackFideId "24129518"]
[WhiteElo "2389"]
[BlackElo "2242"]
[WhiteTitle "IM"]
[BlackTitle "FM"]
[WhiteClock "1:12:08"]
[BlackClock "0:26:47"]
[Variant "Standard"]

1. e4 {[%clk 1:30:58]}  c5 {[%clk 1:28:10]} 2. Nf3 {[%clk 1:31:19]}  Nc6 {[%clk 1:28:38]} 3. Nc3 {[%clk 1:31:44]}  e5 {[%clk 1:25:00]}
4. Bc4 {[%clk 1:29:28]}  Be7 {[%clk 1:23:39]} 5. d3 {[%clk 1:29:19]}  Nf6 {[%clk 1:22:31]} 6. Nd2 {[%clk 1:26:48]}  d6 {[%clk 1:14:14]}
7. Nf1 {[%clk 1:27:12]}  Bg4 {[%clk 1:14:04]} 8. f3 {[%clk 1:27:37]}  Be6 {[%clk 1:14:22]} 9. Ne3 {[%clk 1:28:05]}  O-O {[%clk 1:12:10]}
10. Bd2 {[%clk 1:28:03]}  Nb4 {[%clk 0:58:56]} 11. Qe2 {[%clk 1:28:06]}  d5 {[%clk 0:50:44]} 12. exd5 {[%clk 1:28:27]}  Nfxd5 {[%clk 0:49:01]}
13. Nexd5 {[%clk 1:28:34]}  Nxd5 {[%clk 0:48:05]} 14. O-O-O {[%clk 1:28:51]}  Bf6 {[%clk 0:40:41]} 15. Qe4 {[%clk 1:22:10]}  Nxc3 {[%clk 0:28:20]}
16. Bxc3 {[%clk 1:22:30]}  Qe7 {[%clk 0:28:24]} 17. Rhe1 {[%clk 1:14:55]}  Bxc4 {[%clk 0:25:34]} 18. dxc4 {[%clk 1:13:46]}  Rfe8 {[%clk 0:21:22]}
19. f4 {[%clk 1:03:52]}  exf4 {[%clk 0:16:12]} 20. Qf5 {[%clk 1:03:19]}  Qf8 {[%clk 0:12:18]} 21. Bxf6 {[%clk 1:03:24]}  Rxe1 {[%clk 0:10:17]}
22. Rxe1 {[%clk 1:03:43]}  gxf6 {[%clk 0:10:28]} 23. Qxf6 {[%clk 0:56:55]}  Re8 {[%clk 0:08:44]} 24. Qg5+ {[%clk 0:53:21]}  Kh8 {[%clk 0:09:08]}
25. Rd1 {[%clk 0:53:32]}  Qg7 {[%clk 0:04:45]} 26. Qxf4 {[%clk 0:52:56]}  Qxg2 {[%clk 0:04:08]} 27. Qxf7 {[%clk 0:51:46]}  Qg5+ {[%clk 0:02:38]}
28. Kb1 {[%clk 0:51:47]}  Qe7 {[%clk 0:02:23]} 29. Qf3 {[%clk 0:49:35]}  Qg7 {[%clk 0:02:23]} 30. a3 {[%clk 0:48:30]}  h6 {[%clk 0:01:56]}
31. Qf5 {[%clk 0:47:08]}  Qg5 {[%clk 0:01:46]} 32. Qxg5 {[%clk 0:45:46]}  hxg5 {[%clk 0:02:11]} 33. Rd5 {[%clk 0:46:11]}  b6 {[%clk 0:01:24]}
34. Rxg5 {[%clk 0:46:28]}  Re1+ {[%clk 0:01:50]} 35. Ka2 {[%clk 0:46:56]}  Re2 {[%clk 0:02:16]} 36. Rh5+ {[%clk 0:45:52]}  Kg7 {[%clk 0:02:42]}
37. Kb3 {[%clk 0:46:20]}  Re3+ {[%clk 0:02:23]} 38. c3 {[%clk 0:46:45]}  Re2 {[%clk 0:02:45]} 39. Rd5 {[%clk 0:44:41]}  Re7 {[%clk 0:02:29]}
40. h4 {[%clk 0:43:20]}  Kg6 {[%clk 0:02:49]} 41. Ka4 {[%clk 0:42:13]}  Re2 {[%clk 0:02:27]} 42. b4 {[%clk 0:41:59]}  Re4 {[%clk 0:30:23]}
43. h5+ {[%clk 1:12:13]}  Kh6 {[%clk 0:30:49]} 44. Kb5 {[%clk 1:12:11]}  Re3 {[%clk 0:28:43]} 45. bxc5 {[%clk 1:11:17]}  bxc5 {[%clk 0:28:39]}
46. Rxc5 {[%clk 1:11:40]}  Rxc3 {[%clk 0:29:35]} 47. a4 {[%clk 1:12:02]}  Rb3+ {[%clk 0:26:47]} 48. Ka6 {[%clk 1:12:08]} 1-0

[Event "2026 European Womens Championship"]
[Site "Batumi, GE"]
[Date "2026.06.02"]
[Round "8"]
[White "Socko, Monika"]
[Black "Fataliyeva, Ulviyya"]
[Result "0-1"]
[Board "5"]
[TimeControl "5400+30"]
[WhiteFideId "1106619"]
[BlackFideId "13403052"]
[WhiteElo "2355"]
[BlackElo "2450"]
[WhiteTitle "GM"]
[BlackTitle "IM"]
[WhiteClock "0:03:12"]
[BlackClock "0:07:53"]
[Variant "Standard"]

1. e4 {[%clk 1:30:57]}  c5 {[%clk 1:22:51]} 2. Nf3 {[%clk 1:31:22]}  e6 {[%clk 1:23:16]} 3. d4 {[%clk 1:31:50]}  cxd4 {[%clk 1:23:39]}
4. Nxd4 {[%clk 1:32:16]}  Nc6 {[%clk 1:24:05]} 5. Nc3 {[%clk 1:32:18]}  Nf6 {[%clk 1:23:58]} 6. Ndb5 {[%clk 1:32:05]}  Bb4 {[%clk 1:23:54]}
7. a3 {[%clk 1:32:06]}  Bxc3+ {[%clk 1:24:18]} 8. Nxc3 {[%clk 1:32:33]}  d5 {[%clk 1:24:41]} 9. exd5 {[%clk 1:32:59]}  exd5 {[%clk 1:25:07]}
10. Bd3 {[%clk 1:32:59]}  O-O {[%clk 1:25:30]} 11. O-O {[%clk 1:33:26]}  Bg4 {[%clk 1:25:56]} 12. f3 {[%clk 1:33:33]}  d4 {[%clk 1:26:15]}
13. Ne2 {[%clk 1:24:47]}  Bh5 {[%clk 1:26:38]} 14. Kh1 {[%clk 1:20:37]}  Qb6 {[%clk 1:19:07]} 15. b4 {[%clk 1:08:46]}  Rad8 {[%clk 1:16:27]}
16. Bg5 {[%clk 1:04:01]}  Ne5 {[%clk 1:14:09]} 17. Ng3 {[%clk 1:00:01]}  Bg6 {[%clk 1:09:25]} 18. f4 {[%clk 0:53:58]}  Bxd3 {[%clk 1:00:09]}
19. fxe5 {[%clk 0:51:27]}  Bxf1 {[%clk 1:00:25]} 20. exf6 {[%clk 0:42:59]}  Rd5 {[%clk 1:00:36]} 21. Bh4 {[%clk 0:32:21]}  Bb5 {[%clk 0:42:02]}
22. Qg4 {[%clk 0:27:13]}  g6 {[%clk 0:41:06]} 23. Qf4 {[%clk 0:26:11]}  Kh8 {[%clk 0:40:59]} 24. Re1 {[%clk 0:24:55]}  Qc6 {[%clk 0:36:47]}
25. Qh6 {[%clk 0:20:39]}  Rg8 {[%clk 0:37:09]} 26. Ne4 {[%clk 0:20:21]}  Rh5 {[%clk 0:28:18]} 27. Qf4 {[%clk 0:20:47]}  Qd5 {[%clk 0:24:10]}
28. Bg3 {[%clk 0:14:31]}  Rf5 {[%clk 0:23:02]} 29. Qc1 {[%clk 0:11:34]}  Rf1+ {[%clk 0:15:01]} 30. Rxf1 {[%clk 0:11:51]}  Bxf1 {[%clk 0:15:26]}
31. Qf4 {[%clk 0:08:37]}  Bxg2+ {[%clk 0:08:54]} 32. Kxg2 {[%clk 0:07:59]}  Re8 {[%clk 0:09:20]} 33. Kf3 {[%clk 0:06:54]}  g5 {[%clk 0:09:45]}
34. Qg4 {[%clk 0:06:12]}  d3 {[%clk 0:10:08]} 35. Be1 {[%clk 0:01:28]}  dxc2 {[%clk 0:09:54]} 36. Bd2 {[%clk 0:01:56]}  Qd3+ {[%clk 0:09:32]}
37. Kf2 {[%clk 0:02:05]}  Qxe4 {[%clk 0:08:41]} 38. Qd7 {[%clk 0:02:31]}  Qh4+ {[%clk 0:07:01]} 39. Kg1 {[%clk 0:02:01]}  c1=Q+ {[%clk 0:07:06]}
40. Bxc1 {[%clk 0:02:29]}  Re1+ {[%clk 0:07:12]} 41. Kg2 {[%clk 0:02:58]}  Re2+ {[%clk 0:07:28]} 42. Kf3 {[%clk 0:03:12]}  Qe4+ {[%clk 0:07:53]} 0-1

[Event "2026 European Womens Championship"]
[Site "Batumi, GE"]
[Date "2026.06.02"]
[Round "8"]
[White "Toncheva, Nadya"]
[Black "Narva, Mai"]
[Result "0-1"]
[Board "6"]
[TimeControl "5400+30"]
[WhiteFideId "2924056"]
[BlackFideId "4500512"]
[WhiteElo "2320"]
[BlackElo "2426"]
[WhiteTitle "WGM"]
[BlackTitle "IM"]
[WhiteClock "0:24:55"]
[BlackClock "0:26:09"]
[Variant "Standard"]

1. e4 {[%clk 1:30:56]}  c5 {[%clk 1:28:11]} 2. c3 {[%clk 1:31:21]}  Nf6 {[%clk 1:28:21]} 3. e5 {[%clk 1:31:14]}  Nd5 {[%clk 1:28:45]}
4. Bc4 {[%clk 1:30:17]}  Nb6 {[%clk 1:28:27]} 5. Bb3 {[%clk 1:30:41]}  d6 {[%clk 1:18:03]} 6. exd6 {[%clk 1:30:24]}  Qxd6 {[%clk 1:16:59]}
7. Nf3 {[%clk 1:29:08]}  g6 {[%clk 1:06:57]} 8. O-O {[%clk 1:25:11]}  Bg7 {[%clk 1:06:37]} 9. a4 {[%clk 1:23:34]}  Nc6 {[%clk 0:59:04]}
10. a5 {[%clk 1:13:10]}  Nd7 {[%clk 0:58:25]} 11. Qe2 {[%clk 1:00:41]}  O-O {[%clk 0:55:11]} 12. a6 {[%clk 1:00:44]}  bxa6 {[%clk 0:53:09]}
13. Na3 {[%clk 1:00:07]}  Rb8 {[%clk 0:50:18]} 14. Nc4 {[%clk 0:56:17]}  Qc7 {[%clk 0:49:48]} 15. Ba2 {[%clk 0:56:35]}  a5 {[%clk 0:39:31]}
16. d3 {[%clk 0:56:20]}  Ba6 {[%clk 0:39:25]} 17. Bg5 {[%clk 0:52:50]}  h6 {[%clk 0:33:17]} 18. Bxe7 {[%clk 0:41:29]}  Rbe8 {[%clk 0:28:45]}
19. Bd6 {[%clk 0:41:38]}  Qxd6 {[%clk 0:28:36]} 20. Qxe8 {[%clk 0:40:53]}  Bxc4 {[%clk 0:27:01]} 21. Qe3 {[%clk 0:40:16]}  Bxa2 {[%clk 0:21:51]}
22. Rxa2 {[%clk 0:40:40]}  Qd5 {[%clk 0:21:52]} 23. Rfa1 {[%clk 0:36:19]}  Rd8 {[%clk 0:18:59]} 24. Qe4 {[%clk 0:34:06]}  Qxe4 {[%clk 0:17:30]}
25. dxe4 {[%clk 0:34:31]}  Nb6 {[%clk 0:17:53]} 26. Kf1 {[%clk 0:30:08]}  a4 {[%clk 0:16:58]} 27. Rb1 {[%clk 0:23:32]}  Na5 {[%clk 0:14:39]}
28. Ke2 {[%clk 0:23:17]}  Nb3 {[%clk 0:14:31]} 29. Rd1 {[%clk 0:22:08]}  Re8 {[%clk 0:14:33]} 30. Nd2 {[%clk 0:20:55]}  c4 {[%clk 0:13:45]}
31. f3 {[%clk 0:17:33]}  f5 {[%clk 0:13:36]} 32. Nf1 {[%clk 0:13:36]}  fxe4 {[%clk 0:13:14]} 33. f4 {[%clk 0:14:01]}  e3 {[%clk 0:09:54]}
34. h3 {[%clk 0:10:31]}  Bf8 {[%clk 0:09:16]} 35. Nh2 {[%clk 0:10:25]}  a3 {[%clk 0:08:50]} 36. Ng4 {[%clk 0:09:57]}  axb2 {[%clk 0:08:03]}
37. Rxb2 {[%clk 0:09:41]}  Bg7 {[%clk 0:08:11]} 38. Rc2 {[%clk 0:08:41]}  Na4 {[%clk 0:07:38]} 39. Ne5 {[%clk 0:09:05]}  Bxe5 {[%clk 0:03:09]}
40. fxe5 {[%clk 0:09:30]}  Rxe5 {[%clk 0:02:48]} 41. Rd8+ {[%clk 0:09:26]}  Kf7 {[%clk 0:03:13]} 42. Rd7+ {[%clk 0:09:52]}  Kf6 {[%clk 0:27:59]}
43. Rxa7 {[%clk 0:37:05]}  Nac5 {[%clk 0:28:23]} 44. Kf3 {[%clk 0:34:51]}  Nd2+ {[%clk 0:26:09]} 45. Ke2 {[%clk 0:35:16]}  Nd3 {[%clk 0:26:19]}
46. Ra6+ {[%clk 0:30:20]}  Kg5 {[%clk 0:25:23]} 47. g3 {[%clk 0:29:35]}  Nb3 {[%clk 0:25:08]} 48. h4+ {[%clk 0:28:41]}  Kh5 {[%clk 0:25:16]}
49. Kf1 {[%clk 0:25:13]}  Nbc1 {[%clk 0:24:57]} 50. Kg2 {[%clk 0:24:12]}  e2 {[%clk 0:25:01]} 51. Rxc1 {[%clk 0:24:26]}  Nxc1 {[%clk 0:25:20]}
52. Kh3 {[%clk 0:24:45]}  Re3 {[%clk 0:25:34]} 53. Re6 {[%clk 0:24:30]}  e1=Q {[%clk 0:25:44]} 54. Re5+ {[%clk 0:24:55]}  g5 {[%clk 0:26:09]} 0-1